fUSD/lending_fUSD_20260215
["ID","MTS","AMOUNT","RATE_DAILY","PERIOD"]
[405387112,1771119053293,-150.52379034,0.00043835,120]
[405387113,1771119053304,-304.67983808,0.00043835,120]
[405387114,1771119053314,-195.8741185,0.00043835,120]
[405387115,1771119053325,-578.53035538,0.00043835,120]
[405387116,1771119053346,-411.54,0.00044,14]
[405387117,1771119053358,-490.04112445,0.00044079,120]
[405387118,1771119053371,-500.0,0.00044079,120]
[405387119,1771119053382,-589.5,0.00044079,120]
[405387120,1771119053393,-500.0,0.00044079,120]
[405387121,1771119053406,-500.0,0.00044079,120]
[405387122,1771119053418,-374.39990805,0.00044079,120]
[405387123,1771119053491,-184.12,0.00036779,10]
[405387124,1771119053503,-125.60009195,0.00044079,120]
[405387125,1771119053516,-2133.07,0.00044079,120]
[405387126,1771119053529,-1434.28,0.00044079,120]
[405387127,1771119053540,-500.0,0.0004408,120]
[405387128,1771119053551,-258.7094516,0.0004408,120]
[405387129,1771119053563,-150.0,0.0004408,120]
[405387130,1771119053575,-500.0,0.0004408,120]
[405387131,1771119053585,-500.0,0.0004408,120]
[405387132,1771119053598,-500.0,0.0004408,120]
[405387133,1771119053608,-500.0,0.0004408,120]
[405387134,1771119053618,-500.0,0.0004408,120]
[405387135,1771119053630,-500.0,0.0004408,120]
[405387136,1771119053641,-500.0,0.0004408,120]
[405387137,1771119053652,-606.33962035,0.0004408,120]
[405387138,1771119053663,-500.0,0.0004408,120]
[405387139,1771119053676,-500.0,0.0004408,120]
[405387140,1771119053686,-500.0,0.0004408,120]
[405387141,1771119053698,-500.0,0.0004408,120]
[405387142,1771119053711,-500.0,0.0004408,120]
[405387143,1771119053725,-500.0,0.0004408,120]
[405387144,1771119053737,-500.0,0.0004408,120]
[405387145,1771119053749,-500.0,0.0004408,120]
[405387146,1771119053760,-500.0,0.0004408,120]
[405387147,1771119053771,-500.0,0.0004408,120]
[405387148,1771119053781,-500.0,0.0004408,120]
[405387149,1771119053791,-500.0,0.0004408,120]
[405387150,1771119053800,-623.70031618,0.0004408,120]
[405387151,1771119053811,-222.40186844,0.0004408,120]
[405387152,1771119053821,-999.67,0.0004408,30]
[405387153,1771119053831,-999.67,0.0004408,30]
[405387154,1771119053840,-999.67,0.0004408,30]
[405387155,1771119053850,-999.67,0.0004408,30]
[405387156,1771119053861,-999.67,0.0004408,30]
[405387157,1771119053872,-999.67,0.0004408,30]
[405387158,1771119053882,-499.35462745,0.0004408,30]
[405387159,1771119053897,-500.31537255,0.0004408,30]
[405387160,1771119053908,-999.67,0.0004408,30]
[405387161,1771119053919,-999.67,0.0004408,30]
[405387162,1771119053931,-999.67,0.0004408,30]
[405387163,1771119053943,-635.27442748,0.0004408,30]
[405387169,1771119438334,151.0,0.00014634,2]
[405387170,1771119457602,1018.72338316,0.00017999,2]
[405387171,1771119457628,428.18800819,0.00017999,2]
[405387176,1771119778133,3000.0,0.00022,120]
[405387193,1771120232016,-150.68,0.000178,2]
[405387194,1771120232026,-250.0,0.0001815,2]
[405387195,1771120232038,-158.86,0.000185,2]
[405387196,1771120232049,-555.7172,0.00019,2]
[405387197,1771120232059,-250.0,0.0001958,2]
[405387198,1771120232069,-252.66887969,0.00021281,2]
[405387199,1771120232078,-782.0,0.00027866,10]
[405387200,1771120232087,-1521.799,0.00032606,2]
[405387201,1771120232096,-8000.0,0.0003587,4]
[405387202,1771120232105,-153.894705,0.00036454,60]
[405387203,1771120232115,-496.963,0.00036888,7]
[405387204,1771120232126,-187.49529399,0.000372,120]
[405387205,1771120232138,-1448.93,0.00038366,2]
[405387206,1771120232147,-301.0,0.00038371,5]
[405387207,1771120232157,-1221.0,0.00038371,5]
[405387208,1771120232167,-301.0,0.00038372,5]
[405387209,1771120232176,-500.0,0.00038373,5]
[405387210,1771120232185,-500.0,0.00038373,5]
[405387211,1771120232194,-504.67413726,0.00038373,5]
[405387212,1771120232204,-500.0,0.00038373,5]
[405387213,1771120232214,-500.0,0.00038373,3]
[405387214,1771120232225,-500.6038025,0.00038373,5]
[405387215,1771120232234,-500.2716608,0.00038373,5]
[405387216,1771120232244,-507.9623124,0.00038373,5]
[405387217,1771120232253,-500.0,0.00038373,5]
[405387218,1771120232263,-200.0,0.00038438,2]
[405387219,1771120232273,-763.25,0.00038473,120]
[405387220,1771120232283,-412.8511998,0.00038788,2]
[405387221,1771120232293,-601.0,0.00038795,120]
[405387222,1771120232303,-404.51090159,0.0003882,15]
[405387223,1771120232313,-500.0,0.0003882,15]
[405387224,1771120232322,-613.36832404,0.0003882,15]
[405387225,1771120232332,-565.36941231,0.0003882,15]
[405387226,1771120232341,-20815.96190915,0.0003882,26]
[405387227,1771120232350,-44136.09380582,0.00038821,2]
[405387228,1771120232361,-2775.90264677,0.00038821,2]
[405387229,1771120232373,-16450.46437534,0.00038821,2]
[405387247,1771120245548,-263.4057155,0.0003882,15]
[405387249,1771120246333,-236.5942845,0.0003882,15]
[405387250,1771120246344,-395.75858862,0.0003882,15]
[405387251,1771120246353,-283.15763111,0.0003882,15]
[405387252,1771120246363,-279.35782683,0.0003882,15]
[405387253,1771120246372,-1357.58666894,0.00038821,2]
[405387259,1771120719968,195.0,0.0002,30]
[405387260,1771120720180,195.0,0.0002,30]
[405387270,1771120997164,3000.0,0.00022,120]
[405387271,1771121010450,2000.0,0.00022,120]
[405387272,1771121019173,2556.0,0.00022,120]
[405387304,1771121432248,-1180.03656555,0.00034795,2]
[405387305,1771121432259,-500.0,0.00034795,2]
[405387306,1771121432269,-284.03835,0.00035888,30]
[405387307,1771121432279,-345.40624969,0.00035988,120]
[405387308,1771121432288,-284.03835,0.00036088,30]
[405387309,1771121432299,-284.03835,0.00036288,30]
[405387310,1771121432310,-284.03835,0.00036488,30]
[405387311,1771121432319,-284.03835,0.00036688,30]
[405387312,1771121432330,-946.7945,0.00036888,7]
[405387313,1771121432339,-284.03835,0.00036888,30]
[405387314,1771121432350,-1000.0,0.00036987,2]
[405387315,1771121432360,-163.1,0.00037,30]
[405387316,1771121432369,-284.03835,0.00037088,30]
[405387317,1771121432380,-284.03835,0.00037288,30]
[405387318,1771121432389,-284.03835,0.00037488,30]
[405387319,1771121432399,-284.03835,0.00037688,30]
[405387320,1771121432407,-284.03835,0.00037888,30]
[405387321,1771121432417,-371.56607982,0.000379,2]
[405387322,1771121432430,-284.74263179,0.000379,2]
[405387323,1771121432441,-500.0,0.00037961,15]
[405387324,1771121432451,-500.0,0.00037961,15]
[405387325,1771121432460,-500.0,0.00037961,15]
[405387326,1771121432470,-500.0,0.00037961,15]
[405387327,1771121432479,-273.59854901,0.00037961,15]
[405387328,1771121432489,-500.0,0.00037961,15]
[405387329,1771121432499,-500.0,0.00037961,15]
[405387330,1771121432509,-500.0,0.00037961,15]
[405387331,1771121432520,-500.0,0.00037961,15]
[405387332,1771121432530,-500.0,0.00037961,15]
[405387333,1771121432541,-205.19808621,0.00037961,15]
[405387334,1771121432551,-500.0,0.00037961,15]
[405387335,1771121432561,-241.11036073,0.00037961,15]
[405387336,1771121432570,-458.76977187,0.00037961,15]
[405387337,1771121432580,-35806.38612797,0.00037962,26]
[405387338,1771121432591,-151.64470311,0.00037962,2]
[405387339,1771121432601,-237635.29946315,0.00037962,2]
[405387340,1771121432617,-609.8984744,0.00037962,2]
[405387344,1771121438421,-378.29286825,0.00037962,2]
[405387345,1771121438433,-8199.12932782,0.00037962,2]
[405387346,1771121438444,-1028.17508243,0.00037962,2]
[405387347,1771121438455,-1187.75083997,0.00037962,2]
[405387349,1771121440411,-801.04957216,0.00037962,2]
[405387350,1771121440728,-451.92026468,0.00037962,2]
[405387359,1771121444886,-2115.17969769,0.00037962,2]
[405387360,1771121444899,-428.18800819,0.00037962,2]
[405387418,1771122631431,-399.0,0.00017999,2]
[405387419,1771122631442,-425.0,0.00017999,2]
[405387420,1771122631452,-300.0,0.00017999,2]
[405387421,1771122631463,-1209.32099426,0.00018,2]
[405387422,1771122631474,-223621.21477591,0.00018,2]
[405387423,1771122631484,-357.65,0.00027336,2]
[405387424,1771122631494,-357.65,0.00027953,2]
[405387425,1771122631504,-357.65,0.00028569,2]
[405387426,1771122631514,-357.65,0.00029186,2]
[405387427,1771122631524,-357.65,0.00029802,2]
[405387428,1771122631534,-357.65,0.00030419,2]
[405387429,1771122631544,-357.65,0.00031036,2]
[405387430,1771122631553,-357.65,0.00031652,2]
[405387431,1771122631562,-357.65,0.00032269,2]
[405387432,1771122631571,-357.65,0.00032885,2]
[405387433,1771122631585,-996.02,0.00032885,2]
[405387434,1771122631597,-357.65,0.00033502,2]
[405387435,1771122631607,-357.65,0.00034119,2]
[405387436,1771122631617,-1050.287,0.00034622,2]
[405387437,1771122631627,-167.779,0.00034622,2]
[405387438,1771122631637,-357.65,0.00034735,2]
[405387439,1771122631647,-150.59,0.00035144,2]
[405387440,1771122631657,-357.65,0.00035352,2]
[405387441,1771122631668,-256.91242767,0.0003561,120]
[405387442,1771122631679,-150.0,0.00035758,2]
[405387443,1771122631689,-2776.35,0.00035861,120]
[405387444,1771122631698,-2000.0,0.000359,2]
[405387445,1771122631708,-357.65,0.00035968,2]
[405387446,1771122631718,-357.65,0.00036585,2]
[405387448,1771122631727,-357.65,0.00037202,2]
[405387450,1771122631736,-715.54,0.00037381,30]
[405387452,1771122631745,-3362.05623418,0.00037652,2]
[405387454,1771122631755,-181.455,0.00037761,49]
[405387456,1771122631765,-1154.141,0.00037761,49]
[405387458,1771122631775,-150.0,0.00037761,20]
[405387460,1771122631784,-357.65,0.00037818,2]
[405387462,1771122631794,-3824.9171749,0.00037931,2]
[405387464,1771122631803,-5000.0,0.00038,2]
[405387465,1771122631814,-166.66,0.00038208,2]
[405387466,1771122631825,-500.0,0.00038373,5]
[405387467,1771122631837,-500.0,0.00038373,5]
[405387468,1771122631847,-500.0,0.00038373,5]
[405387469,1771122631858,-500.0,0.00038373,3]
[405387470,1771122631867,-500.0,0.00038373,5]
[405387471,1771122631877,-500.0,0.00038373,5]
[405387472,1771122631886,-319.1001892,0.000384,2]
[405387473,1771122631898,-197.2850233,0.000384,2]
[405387474,1771122631908,-154.43147232,0.00038432,14]
[405387475,1771122631918,-357.65,0.00038435,2]
[405387476,1771122631927,-274.83259116,0.00038821,2]
[405387477,1771122631937,-854.36,0.00038863,2]
[405387478,1771122631947,-500.0,0.00038894,20]
[405387479,1771122631961,-530.2460954,0.00038921,5]
[405387480,1771122631974,-501.54314817,0.00038921,5]
[405387481,1771122631984,-512.87268658,0.00038921,5]
[405387482,1771122631993,-500.49152974,0.00038921,3]
[405387483,1771122632002,-1003.10699587,0.00038921,5]
[405387484,1771122632011,-506.02325208,0.00038921,5]
[405387485,1771122632022,-5000.0,0.00038921,120]
[405387486,1771122632032,-357.65,0.00039051,2]
[405387487,1771122632043,-200.0,0.00039249,2]
[405387488,1771122632053,-1000.0,0.00039278,2]
[405387489,1771122632063,-217.16989415,0.000393,2]
[405387490,1771122632072,-30602.39565068,0.00039317,26]
[405387491,1771122632083,-9753.89,0.00039317,2]
[405387492,1771122632092,-28743.01456551,0.000394,7]
[405387493,1771122632105,-2869.32272618,0.000394,7]
[405387494,1771122632114,-177.0,0.000396,30]
[405387495,1771122632124,-2000.0,0.000396,2]
[405387496,1771122632134,-151.0,0.00039726,9]
[405387497,1771122632144,-166.66,0.00039785,2]
[405387498,1771122632154,-763.76,0.00039967,2]
[405387499,1771122632164,-153.0,0.0004,120]
[405387500,1771122632174,-167.2128807,0.0004,30]
[405387501,1771122632184,-256.26836862,0.000401,15]
[405387502,1771122632195,-14728.269,0.000402,120]
[405387503,1771122632205,-14728.269,0.000402,120]
[405387504,1771122632215,-14728.27,0.000402,120]
[405387505,1771122632226,-168.0,0.00040295,2]
[405387506,1771122632236,-853.0,0.0004033,11]
[405387507,1771122632246,-256.26836856,0.00040532,15]
[405387508,1771122632255,-738.0,0.00040567,30]
[405387509,1771122632266,-739.0,0.00040638,30]
[405387510,1771122632276,-732.0,0.00040705,30]
[405387511,1771122632285,-349.33107995,0.00040821,15]
[405387512,1771122632296,-729.0,0.00040835,30]
[405387513,1771122632306,-153.0,0.000409,120]
[405387514,1771122632317,-256.26836856,0.00040964,15]
[405387515,1771122632327,-745.0,0.00040993,30]
[405387516,1771122632339,-715.54,0.00041034,120]
[405387517,1771122632349,-503.1,0.00041072,22]
[405387518,1771122632359,-258.14,0.00041096,120]
[405387519,1771122632369,-607.18991545,0.00041096,2]
[405387520,1771122632378,-300.150957,0.00041177,104]
[405387521,1771122632389,-742.0,0.00041217,30]
[405387522,1771122632400,-537.82,0.00041233,120]
[405387523,1771122632410,-500.0,0.00041245,30]
[405387524,1771122632420,-1000.0,0.000413,2]
[405387525,1771122632429,-166.66,0.00041362,2]
[405387526,1771122632437,-256.26836856,0.00041396,15]
[405387527,1771122632444,-12947.93,0.000414,30]
[405387528,1771122632452,-12947.93,0.000414,120]
[405387529,1771122632461,-12947.93,0.000414,120]
[405387530,1771122632470,-1157.40987926,0.0004153,2]
[405387531,1771122632483,-1638.58012074,0.0004153,2]
[405387532,1771122632491,-745.0,0.00041533,30]
[405387533,1771122632502,-192.49,0.00041614,30]
[405387534,1771122632513,-153.0,0.000417,120]
[405387535,1771122632524,-10651.0,0.000417,117]
[405387536,1771122632535,-236.308502,0.000417,120]
[405387537,1771122632546,-260.291032,0.000417,120]
[405387538,1771122632556,-259.459034,0.000417,120]
[405387539,1771122632567,-258.900316,0.000417,120]
[405387540,1771122632578,-153.97940007,0.000418,90]
[405387541,1771122632588,-352.5238432,0.0004181,15]
[405387542,1771122632599,-256.26836856,0.00041828,15]
[405387543,1771122632609,-283.28,0.00042,120]
[405387544,1771122632618,-500.0,0.00042,120]
[405387545,1771122632628,-8829.91748808,0.00042158,120]
[405387546,1771122632638,-352.5238432,0.00042173,15]
[405387547,1771122632647,-691.49,0.00042173,2]
[405387548,1771122632658,-500.0,0.00042191,120]
[405387549,1771122632668,-500.0,0.00042191,120]
[405387550,1771122632677,-500.0,0.00042191,120]
[405387551,1771122632687,-500.0,0.00042191,120]
[405387552,1771122632696,-481.59360003,0.00042191,120]
[405387553,1771122632705,-256.26836856,0.0004226,15]
[405387554,1771122632714,-152.26313,0.00042396,30]
[405387555,1771122632726,-185.58871424,0.00042438,120]
[405387556,1771122632736,-500.0,0.000425,120]
[405387557,1771122632747,-352.5238432,0.00042536,15]
[405387558,1771122632758,-153.0,0.000426,120]
[405387559,1771122632767,-256.26836856,0.00042692,15]
[405387560,1771122632778,-338.06277278,0.000427,120]
[405387561,1771122632792,-11227.0431941,0.000427,120]
[405387562,1771122632810,-2535.48197541,0.000427,120]
[405387565,1771122639625,-623.229381,0.000427,120]
[405387570,1771122645395,-500.0,0.000427,120]
[405387620,1771123831520,-175.04428,0.00035888,30]
[405387621,1771123831530,-258.52795508,0.00035988,2]
[405387622,1771123831539,-175.04428,0.00036088,30]
[405387623,1771123831549,-175.04428,0.00036288,30]
[405387624,1771123831559,-175.04428,0.00036488,30]
[405387625,1771123831568,-175.04428,0.00036688,30]
[405387626,1771123831577,-711.96,0.00036803,2]
[405387627,1771123831587,-472.07256924,0.00036888,7]
[405387628,1771123831738,-111.40833076,0.00036888,7]
[405387629,1771123831748,-175.04428,0.00036888,30]
[405387630,1771123831757,-175.04428,0.00037088,30]
[405387631,1771123831766,-175.04428,0.00037288,30]
[405387632,1771123831775,-175.04428,0.00037488,30]
[405387633,1771123831784,-102.42717389,0.00037688,30]
[405387636,1771123837681,-72.61710611,0.00037688,30]
[405387637,1771123837691,-175.04428,0.00037888,30]
[405387638,1771123837700,-171.87,0.00037973,58]
[405387639,1771123837710,-175.04428,0.00038088,30]
[405387640,1771123837719,-4516.2373811,0.00038204,2]
[405387646,1771123839682,-347.85804,0.00038204,2]
[405387647,1771123843294,-135.9045789,0.00038204,2]
[405387648,1771123843307,-175.04428,0.00038288,30]
[405387649,1771123843317,-50.1306791,0.00038488,30]
[405387661,1771123845726,-124.9136009,0.00038488,30]
[405387662,1771123845736,-175.04428,0.00038688,30]
[405387663,1771123845745,-175.04428,0.00039088,30]
[405387664,1771123845755,-175.04428,0.00039288,30]
[405387665,1771123845764,-500.0,0.00039463,20]
[405387666,1771123845774,-400.0,0.00039474,5]
[405387667,1771123845783,-2500.0,0.00039477,120]
[405387668,1771123845793,-250.0,0.00039477,2]
[405387669,1771123845802,-175.04428,0.00039488,30]
[405387670,1771123845812,-4562.49,0.00039532,2]
[405387671,1771123845821,-430.25,0.00039543,120]
[405387672,1771123845831,-181.45615899,0.00039543,55]
[405387673,1771123845840,-923.313,0.00039543,55]
[405387674,1771123845850,-175.04428,0.00039688,30]
[405387675,1771123845859,-175.04428,0.00039888,30]
[405387676,1771123845869,-152.0,0.0004,120]
[405387677,1771123845880,-152.0,0.0004,120]
[405387678,1771123845890,-754.0,0.00040063,30]
[405387679,1771123845900,-175.04428,0.00040088,30]
[405387680,1771123845909,-153.76102116,0.00040188,15]
[405387681,1771123845919,-1999.0,0.00040247,120]
[405387682,1771123845929,-175.04428,0.00040288,30]
[405387683,1771123845938,-735.0,0.00040348,30]
[405387684,1771123845948,-175.04428,0.00040488,30]
[405387685,1771123845958,-200.0,0.00040665,2]
[405387686,1771123845967,-729.0,0.00040672,30]
[405387687,1771123845976,-175.04428,0.00040688,30]
[405387688,1771123845986,-152.0,0.000408,120]
[405387689,1771123845995,-175.04428,0.00040888,30]
[405387690,1771123846005,-317.27336551,0.00040932,120]
[405387691,1771123846015,-152.0,0.00041,120]
[405387692,1771123846024,-726.0,0.00041049,30]
[405387693,1771123846034,-175.04428,0.00041088,30]
[405387694,1771123846043,-587.28386228,0.00041096,2]
[405387695,1771123846052,-153.76102113,0.00041138,15]
[405387696,1771123846062,-175.04428,0.00041288,30]
[405387697,1771123846071,-747.0,0.00041431,30]
[405387698,1771123846080,-175.04428,0.00041488,30]
[405387699,1771123846090,-175.04428,0.00041688,30]
[405387700,1771123846099,-152.0,0.000417,120]
[405387701,1771123846107,-864.014024,0.00041778,2]
[405387702,1771123846117,-1043.8857946,0.00041778,2]
[405387703,1771123846126,-2000.0,0.000418,2]
[405387704,1771123846136,-761.2,0.000418,120]
[405387705,1771123846145,-175.04428,0.00041888,30]
[405387706,1771123846155,-1534.0,0.00042,120]
[405387707,1771123846164,-500.0,0.00042,120]
[405387708,1771123846174,-741.0,0.00042023,30]
[405387709,1771123846183,-153.76102113,0.00042087,15]
[405387710,1771123846193,-152.0,0.000421,120]
[405387711,1771123846203,-241.0,0.00042129,5]
[405387712,1771123846213,-246.76669032,0.000424,15]
[405387713,1771123846223,-152.0,0.000425,120]
[405387714,1771123846233,-500.0,0.000425,120]
[405387715,1771123846243,-500.0,0.000425,120]
[405387716,1771123846252,-500.0,0.000425,120]
[405387717,1771123846262,-500.0,0.000425,120]
[405387718,1771123846271,-500.0,0.000425,120]
[405387719,1771123846280,-500.0,0.000425,120]
[405387720,1771123846290,-500.0,0.000425,120]
[405387721,1771123846303,-266.83941298,0.000425,120]
[405387738,1771125031759,-176.21,0.00032334,2]
[405387739,1771125031769,-321.45899207,0.00034687,120]
[405387740,1771125031779,-300.0,0.00035568,120]
[405387741,1771125031788,-837.9162929,0.00037039,2]
[405387742,1771125031799,-683.8827071,0.00037039,2]
[405387743,1771125031809,-187.49529399,0.0003747,120]
[405387744,1771125031818,-150.59,0.0003757,2]
[405387745,1771125031827,-153.894705,0.00038076,60]
[405387746,1771125031836,-559.0,0.00038083,2]
[405387747,1771125031846,-177.94749311,0.00038272,2]
[405387748,1771125031855,-1525.0,0.00038371,5]
[405387749,1771125031864,-400.0,0.00038372,5]
[405387750,1771125031874,-301.0,0.00038372,5]
[405387751,1771125031883,-500.0,0.00038373,5]
[405387752,1771125031892,-500.0,0.00038373,5]
[405387753,1771125031901,-500.6038025,0.00038373,5]
[405387754,1771125031911,-500.0,0.00038373,5]
[405387755,1771125031921,-500.0,0.00038373,3]
[405387756,1771125031930,-504.67413726,0.00038373,5]
[405387757,1771125031939,-507.9623124,0.00038373,5]
[405387758,1771125031949,-500.0,0.00038373,5]
[405387759,1771125031958,-500.2716608,0.00038373,5]
[405387760,1771125031967,-719.14920182,0.000389,2]
[405387761,1771125031978,-1280.85079818,0.000389,2]
[405387762,1771125031987,-263.86,0.000395,14]
[405387763,1771125031996,-298.09,0.000395,14]
[405387764,1771125032005,-689.59,0.00039926,120]
[405387765,1771125032015,-177.9474931,0.00039971,2]
[405387766,1771125032024,-151.0,0.0004,120]
[405387768,1771125032033,-747.0,0.0004008,30]
[405387770,1771125032042,-150.0,0.00040295,2]
[405387772,1771125032051,-748.0,0.00040852,30]
[405387774,1771125032061,-151.0,0.000409,120]
[405387776,1771125032070,-743.0,0.00041015,30]
[405387778,1771125032079,-568.03040715,0.00041096,2]
[405387780,1771125032088,-200.0,0.00041157,2]
[405387782,1771125032097,-349.91428587,0.00041223,31]
[405387784,1771125032106,-500.0,0.00041223,31]
[405387785,1771125032115,-490.749664,0.00041223,31]
[405387788,1771125032126,-625.54798539,0.00041223,31]
[405387790,1771125032143,-500.0,0.00041223,31]
[405387792,1771125032152,-500.0,0.00041223,31]
[405387793,1771125032161,-500.0,0.00041223,31]
[405387796,1771125032170,-626.36275168,0.00041223,31]
[405387798,1771125032179,-500.0,0.00041223,31]
[405387799,1771125032188,-406.8211638,0.00041223,31]
[405387801,1771125032197,-26047.86258142,0.00041223,54]
[405387803,1771125032206,-153.76102113,0.00041224,15]
[405387805,1771125032216,-42654.29471678,0.00041224,2]
[405387806,1771125032228,-952.0,0.00041224,2]
[405387809,1771125032243,-2055.43133128,0.00041224,2]
[405387810,1771125032254,-1000.0,0.00041224,2]
[405387811,1771125038047,-912809.52195194,0.00041224,2]
[405387812,1771125038057,-1000.0,0.00041324,2]
[405387813,1771125038067,-263.37514125,0.00041669,15]
[405387814,1771125038076,-177.9474931,0.00041669,2]
[405387815,1771125038089,-2500.0,0.00041669,2]
[405387816,1771125038099,-1000.0,0.00041714,120]
[405387818,1771125038108,-199.94422873,0.00041759,7]
[405387820,1771125038118,-500.0,0.00041769,120]
[405387822,1771125038127,-500.0,0.00041769,120]
[405387824,1771125038136,-500.0,0.00041769,120]
[405387826,1771125038146,-500.0,0.00041769,120]
[405387828,1771125038156,-500.0,0.00041769,120]
[405387830,1771125038165,-500.0,0.00041769,120]
[405387832,1771125038174,-500.0,0.00041769,120]
[405387834,1771125038183,-500.0,0.00041769,120]
[405387836,1771125038193,-500.0,0.00041769,120]
[405387838,1771125038203,-500.0,0.00041769,120]
[405387840,1771125038216,-500.0,0.00041769,120]
[405387842,1771125038226,-500.0,0.00041769,120]
[405387844,1771125038235,-500.0,0.00041769,120]
[405387846,1771125038244,-500.0,0.00041769,120]
[405387848,1771125038253,-500.0,0.00041769,120]
[405387850,1771125038263,-500.0,0.00041769,120]
[405387852,1771125038272,-500.0,0.00041769,120]
[405387854,1771125038281,-500.0,0.00041769,120]
[405387856,1771125038290,-500.0,0.00041769,120]
[405387859,1771125038300,-500.0,0.00041769,120]
[405387861,1771125038309,-500.0,0.00041769,120]
[405387863,1771125038318,-500.0,0.00041769,120]
[405387865,1771125038333,-500.0,0.00041769,120]
[405387867,1771125038353,-500.0,0.00041769,120]
[405387869,1771125038365,-500.0,0.00041769,120]
[405387871,1771125038374,-500.0,0.00041769,120]
[405387873,1771125038383,-500.0,0.00041769,120]
[405387875,1771125038391,-500.0,0.00041769,120]
[405387877,1771125038401,-500.0,0.00041769,120]
[405387879,1771125038410,-500.0,0.00041769,120]
[405387881,1771125038420,-500.0,0.00041769,120]
[405387883,1771125038429,-500.0,0.00041769,120]
[405387885,1771125038438,-500.0,0.00041769,120]
[405387887,1771125038448,-500.0,0.00041769,120]
[405387889,1771125038457,-500.0,0.00041769,120]
[405387891,1771125038467,-500.0,0.00041769,120]
[405387893,1771125038476,-500.0,0.00041769,120]
[405387895,1771125038485,-500.0,0.00041769,120]
[405387897,1771125038494,-500.0,0.00041769,120]
[405387899,1771125038504,-500.0,0.00041769,120]
[405387901,1771125038513,-791.0,0.00041769,120]
[405387903,1771125038522,-500.0,0.00041769,120]
[405387905,1771125038531,-500.0,0.00041769,120]
[405387907,1771125038541,-500.0,0.00041769,120]
[405387909,1771125038551,-500.0,0.00041769,120]
[405387911,1771125038560,-500.0,0.00041769,120]
[405387913,1771125038569,-500.0,0.00041769,120]
[405387915,1771125038578,-500.0,0.00041769,120]
[405387916,1771125038587,-500.0,0.00041769,120]
[405387918,1771125038597,-500.0,0.00041769,120]
[405387919,1771125038610,-500.0,0.00041769,120]
[405387920,1771125038622,-500.0,0.00041769,120]
[405387921,1771125038631,-500.0,0.00041769,120]
[405387922,1771125038641,-500.0,0.00041769,120]
[405387923,1771125038651,-500.0,0.00041769,120]
[405387924,1771125038660,-500.0,0.00041769,120]
[405387925,1771125038675,-500.0,0.00041769,120]
[405387926,1771125038685,-500.0,0.00041769,120]
[405387927,1771125038694,-500.0,0.00041769,120]
[405387928,1771125038704,-500.0,0.00041769,120]
[405387929,1771125038713,-500.0,0.00041769,120]
[405387930,1771125038723,-500.0,0.00041769,120]
[405387931,1771125038733,-500.0,0.00041769,120]
[405387932,1771125038743,-500.0,0.00041769,120]
[405387933,1771125038752,-500.0,0.00041769,120]
[405387934,1771125038762,-500.0,0.00041769,120]
[405387935,1771125038771,-500.0,0.00041769,120]
[405387936,1771125038781,-886.0,0.00041769,120]
[405387937,1771125038790,-500.0,0.00041769,120]
[405387938,1771125038800,-500.0,0.00041769,120]